fUSD/lending_fUSD_20240611
["ID","MTS","AMOUNT","RATE_DAILY","PERIOD"]
[329120466,1718122244241,-500.0,0.00021917,2]
[329120467,1718122244254,-500.0,0.00021917,2]
[329120468,1718122244264,-828.47577674,0.00021917,2]
[329120469,1718122244279,-93.07422326,0.00021917,2]
[329120470,1718122244288,-500.0,0.00021917,2]
[329120471,1718122244298,-500.0,0.00021917,2]
[329120472,1718122244308,-1796.6,0.00021917,2]
[329120473,1718122244318,-500.0,0.00021917,2]
[329120474,1718122244329,-500.0,0.00021917,2]
[329120475,1718122244339,-500.0,0.00021917,2]
[329120476,1718122244350,-500.0,0.00021917,2]
[329120477,1718122244361,-500.0,0.00021917,2]
[329120478,1718122244371,-506.06343745,0.00021917,2]
[329120479,1718122244382,-500.0,0.00021917,2]
[329120480,1718122244392,-500.0,0.00021917,2]
[329120481,1718122244405,-500.0,0.00021917,2]
[329120482,1718122244416,-500.0,0.00021917,2]
[329120483,1718122244428,-500.0,0.00021917,2]
[329120484,1718122244438,-1294.52363251,0.00021917,2]
[329120485,1718122244451,-711.36636749,0.00021917,2]
[329120486,1718122244464,-415.35,0.00021917,2]
[329120487,1718122244474,-500.0,0.00021917,2]
[329120488,1718122244485,-401.63656734,0.00021917,2]
[329120489,1718122244495,-500.0,0.00021917,2]
[329120490,1718122244508,-1257.43,0.00021917,2]
[329120491,1718122244519,-514.93354295,0.00021917,2]
[329120493,1718122244530,-500.0,0.00021917,2]
[329120495,1718122244541,-353.71387949,0.00021917,2]
[329120497,1718122244552,-506.03227111,0.00021917,2]
[329120498,1718122244563,-500.0,0.00021917,2]
[329120499,1718122244573,-500.0,0.00021917,2]
[329120500,1718122244585,-1014.27,0.00021917,2]
[329120501,1718122244598,-534.49608146,0.00021917,2]
[329120502,1718122244609,-426.07948214,0.00021917,2]
[329120503,1718122244619,-594.61,0.00021917,2]
[329120504,1718122244630,-500.0,0.00021917,2]
[329120505,1718122244643,-1187.6,0.00021917,2]
[329120506,1718122244653,-500.0,0.00021917,2]
[329120507,1718122244664,-500.0,0.00021917,2]
[329120508,1718122244677,-2420.25,0.00021917,2]
[329120509,1718122244688,-500.0,0.00021917,2]
[329120510,1718122244699,-2675.03,0.00021917,2]
[329120511,1718122244709,-288.66614456,0.00021917,2]
[329120512,1718122244720,-500.0,0.00021917,2]
[329120513,1718122244731,-1104.19,0.00021917,2]
[329120514,1718122244742,-500.0,0.00021917,2]
[329120515,1718122244755,-2151.66,0.00021917,2]
[329120516,1718122244767,-1869.76,0.00021917,2]
[329120517,1718122244777,-500.0,0.00021917,2]
[329120518,1718122244787,-1129.58,0.00021917,2]
[329120519,1718122244801,-500.0,0.00021917,2]
[329120520,1718122244812,-500.0,0.00021917,2]
[329120521,1718122244823,-837.02,0.00021917,2]
[329120522,1718122244834,-500.0,0.00021917,2]
[329120523,1718122244844,-537.62594358,0.00021917,2]
[329120524,1718122244855,-602.42,0.00021917,2]
[329120525,1718122244866,-1074.6,0.00021917,2]
[329120526,1718122244878,-5125.73,0.00021917,2]
[329120527,1718122244889,-500.0,0.00021917,2]
[329120528,1718122244900,-500.0,0.00021917,2]
[329120529,1718122244910,-500.0,0.00021917,2]
[329120531,1718122244920,-956.04,0.00021917,2]
[329120533,1718122244931,-3566.86,0.00021917,2]
[329120535,1718122244942,-11157.14,0.00021917,2]
[329120537,1718122244952,-500.0,0.00021917,2]
[329120539,1718122244963,-500.0,0.00021917,2]
[329120540,1718122244973,-500.0,0.00021917,2]
[329120541,1718122244984,-500.0,0.00021917,2]
[329120542,1718122244994,-1563.64,0.00021917,2]
[329120543,1718122245005,-621.0,0.00021917,2]
[329120544,1718122245017,-697.11,0.00021917,2]
[329120545,1718122245028,-3283.01,0.00021917,2]
[329120546,1718122245038,-500.0,0.00021917,2]
[329120547,1718122245048,-1916.3,0.00021917,2]
[329120548,1718122245059,-500.0,0.00021917,2]
[329120549,1718122245069,-5206.34,0.00021917,2]
[329120550,1718122245080,-500.0,0.00021917,2]
[329120551,1718122245091,-500.0,0.00021917,2]
[329120552,1718122245102,-3331.6,0.00021917,2]
[329120553,1718122245112,-562.91,0.00021917,2]
[329120554,1718122245123,-500.0,0.00021917,2]
[329120555,1718122245134,-1640.98,0.00021917,2]
[329120556,1718122245145,-514.4759171,0.00021917,2]
[329120558,1718122245155,-1845.65,0.00021917,2]
[329120559,1718122245166,-4203.85,0.00021917,2]
[329120560,1718122245177,-500.0,0.00021917,2]
[329120561,1718122245187,-715.02,0.00021917,2]
[329120562,1718122245204,-3215.11,0.00021917,2]
[329120563,1718122245218,-438.25696855,0.00021917,2]
[329120564,1718122245228,-721.95,0.00021917,2]
[329120565,1718122245239,-1124.96,0.00021917,2]
[329120566,1718122245249,-708.24,0.00021917,2]
[329120567,1718122245260,-628.06,0.00021917,2]
[329120568,1718122245270,-500.0,0.00021917,2]
[329120569,1718122245281,-4942.11,0.00021917,2]
[329120570,1718122245291,-615.46428138,0.00021917,2]
[329120571,1718122245301,-500.0,0.00021917,2]
[329120572,1718122245312,-1827.14,0.00021917,2]
[329120573,1718122245324,-500.0,0.00021917,2]
[329120574,1718122245334,-500.0,0.00021917,2]
[329120575,1718122245345,-500.0,0.00021917,2]
[329120576,1718122245355,-508.52087434,0.00021917,2]
[329120577,1718122245367,-378.91304415,0.00021917,2]
[329120578,1718122245378,-610.88,0.00021917,2]
[329120579,1718122245388,-535.87,0.00021917,2]
[329120580,1718122245399,-500.0,0.00021917,2]
[329120581,1718122245409,-7292.56,0.00021917,2]
[329120582,1718122245420,-500.0,0.00021917,2]
[329120583,1718122245431,-500.0,0.00021917,2]
[329120584,1718122245442,-500.0,0.00021917,2]
[329120585,1718122245452,-746.77,0.00021917,2]
[329120586,1718122245462,-1847.85,0.00021917,2]
[329120587,1718122245472,-500.0,0.00021917,2]
[329120588,1718122245483,-11170.53,0.00021917,2]
[329120589,1718122245494,-1613.08,0.00021917,2]
[329120590,1718122245504,-512.55384039,0.00021917,2]
[329120591,1718122245515,-805.82,0.00021917,2]
[329120592,1718122245525,-1862.42,0.00021917,2]
[329120593,1718122245536,-500.0,0.00021917,2]
[329120594,1718122245547,-1283.31,0.00021917,2]
[329120595,1718122245557,-545.85052913,0.00021917,2]
[329120596,1718122245567,-500.0,0.00021917,2]
[329120597,1718122245578,-567.32,0.00021917,2]
[329120598,1718122245589,-500.0,0.00021917,2]
[329120599,1718122245599,-500.0,0.00021917,2]
[329120600,1718122245615,-504.12550552,0.00021917,2]
[329120601,1718122245626,-5297.5,0.00021917,2]
[329120602,1718122245637,-500.0,0.00021917,2]
[329120603,1718122245647,-3747.36,0.00021917,2]
[329120604,1718122245658,-500.0,0.00021917,2]
[329120605,1718122245668,-500.0,0.00021917,2]
[329120606,1718122245679,-556.23,0.00021917,2]
[329120607,1718122245692,-10484.42,0.00021917,2]
[329120608,1718122245703,-216.55075823,0.00021917,2]
[329120609,1718122245714,-2460.26,0.00021917,2]
[329120610,1718122245724,-23562.39,0.00021917,2]
[329120611,1718122245734,-3479.57,0.00021917,2]
[329120612,1718122245744,-509.35646009,0.00021917,2]
[329120613,1718122245755,-2319.77,0.00021917,2]
[329120614,1718122245765,-518.22750317,0.00021917,2]
[329120615,1718122245776,-500.0,0.00021917,2]
[329120616,1718122245785,-7992.62,0.00021917,2]
[329120617,1718122245796,-859.95,0.00021917,2]
[329120618,1718122245806,-500.0,0.00021917,2]
[329120619,1718122245816,-663.72,0.00021917,2]
[329120620,1718122245827,-1941.65,0.00021917,2]
[329120621,1718122245838,-1256.93,0.00021917,2]
[329120622,1718122245847,-1710.81,0.00021917,2]
[329120623,1718122245858,-500.0,0.00021917,2]
[329120624,1718122245868,-500.0,0.00021917,2]
[329120625,1718122245879,-1719.27,0.00021917,2]
[329120626,1718122245889,-2212.44,0.00021917,2]
[329120627,1718122245900,-2899.34,0.00021917,2]
[329120629,1718122245912,-500.0,0.00021917,2]
[329120631,1718122245924,-510.92078245,0.00021917,2]
[329120633,1718122245935,-500.0,0.00021917,2]
[329120634,1718122245945,-525.27,0.00021917,2]
[329120635,1718122245956,-5519.88,0.00021917,2]
[329120636,1718122245966,-500.0,0.00021917,2]
[329120637,1718122245977,-525.71838937,0.00021917,2]
[329120638,1718122245987,-15326.97,0.00021917,2]
[329120639,1718122245997,-536.0115766,0.00021917,2]
[329120640,1718122246008,-507.15312411,0.00021917,2]
[329120641,1718122246019,-14643.1,0.00021917,2]
[329120642,1718122246029,-500.0,0.00021917,2]
[329120643,1718122246040,-500.0,0.00021917,2]
[329120644,1718122246050,-500.0,0.00021917,2]
[329120645,1718122246061,-4042.68,0.00021917,2]
[329120646,1718122246071,-5710.44,0.00021917,2]
[329120647,1718122246082,-518.3010196,0.00021917,2]
[329120648,1718122246093,-4746.93,0.00021917,2]
[329120649,1718122246103,-506.82011707,0.00021917,2]
[329120650,1718122246114,-500.0,0.00021917,2]
[329120651,1718122246124,-579.62,0.00021917,2]
[329120652,1718122246134,-500.0,0.00021917,2]
[329120653,1718122246144,-3194.00168459,0.00021917,2]
[329120668,1718122246342,-252.24582985,0.00021917,2]
[329120670,1718122246355,-930.50649174,0.00021917,2]
[329120674,1718122246368,-3831.46599382,0.00021917,2]
[329120677,1718122246378,-607.32,0.00021917,2]
[329120679,1718122246389,-2200.8,0.00021917,2]
[329120680,1718122246400,-2481.11,0.00021917,2]
[329120682,1718122246410,-1043.98,0.00021917,2]
[329120684,1718122246421,-1097.33,0.00021917,2]
[329120686,1718122246432,-503.53776297,0.00021917,2]
[329120688,1718122246442,-77.47287229,0.00021917,2]
[329120690,1718122246454,-4381.58712771,0.00021917,2]
[329120692,1718122246464,-500.0,0.00021917,2]
[329120694,1718122246475,-500.0,0.00021917,2]
[329120696,1718122246485,-500.0,0.00021917,2]
[329120698,1718122246495,-8423.27,0.00021917,2]
[329120700,1718122246505,-500.0,0.00021917,2]
[329120701,1718122246515,-500.0,0.00021917,2]
[329120702,1718122246525,-500.0,0.00021917,2]
[329120703,1718122246536,-500.0,0.00021917,2]
[329120704,1718122246546,-2891.27,0.00021917,2]
[329120705,1718122246556,-569.37716388,0.00021917,2]
[329120706,1718122246567,-793.97,0.00021917,2]
[329120707,1718122246577,-536.94,0.00021917,2]
[329120708,1718122246587,-1448.1,0.00021917,2]
[329120709,1718122246604,-500.0,0.00021917,2]
[329120710,1718122246614,-500.0,0.00021917,2]
[329120711,1718122246625,-1242.11,0.00021917,2]
[329120712,1718122246635,-500.0,0.00021917,2]
[329120713,1718122246647,-798.12,0.00021917,2]
[329120714,1718122246659,-608.19,0.00021917,2]
[329120715,1718122246670,-3044.58,0.00021917,2]
[329120716,1718122246681,-2280.96,0.00021917,2]
[329120717,1718122246693,-500.0,0.00021917,2]
[329120718,1718122246703,-2761.65,0.00021917,2]
[329120719,1718122246714,-1807.24,0.00021917,2]
[329120720,1718122246726,-2232.75,0.00021917,2]
[329120721,1718122246736,-534.15,0.00021917,2]
[329120722,1718122246747,-1960.2,0.00021917,2]
[329120723,1718122246758,-922.8,0.00021917,2]
[329120724,1718122246770,-500.0,0.00021917,2]
[329120725,1718122246782,-500.0,0.00021917,2]
[329120726,1718122246796,-500.0,0.00021917,2]
[329120727,1718122246807,-1144.74,0.00021917,2]
[329120728,1718122246818,-500.0,0.00021917,2]
[329120729,1718122246830,-1400.92,0.00021917,2]
[329120730,1718122246840,-508.12,0.00021917,2]
[329120731,1718122246851,-500.0,0.00021917,2]
[329120732,1718122246862,-2765.24,0.00021917,2]
[329120733,1718122246873,-1126.26,0.00021917,2]
[329120734,1718122246886,-1006.6,0.00021917,2]
[329120735,1718122246897,-500.0,0.00021917,2]
[329120736,1718122246908,-534.94488152,0.00021917,2]
[329120737,1718122246919,-592.11,0.00021917,2]
[329120738,1718122246930,-500.0,0.00021917,2]
[329120739,1718122246941,-1598.28,0.00021917,2]
[329120740,1718122246952,-518.43131758,0.00021917,2]
[329120741,1718122246963,-2908.85,0.00021917,2]
[329120742,1718122246975,-500.0,0.00021917,2]
[329120743,1718122246985,-4898.78,0.00021917,2]
[329120744,1718122246997,-2272.13,0.00021917,2]
[329120745,1718122247011,-4272.93,0.00021917,2]
[329120746,1718122247029,-1588.79,0.00021917,2]
[329120747,1718122247041,-500.0,0.00021917,2]
[329120748,1718122247052,-14781.33,0.00021917,2]
[329120749,1718122247063,-870.12,0.00021917,2]
[329120750,1718122247077,-4728.69,0.00021917,2]
[329120751,1718122247090,-9080.45,0.00021917,2]
[329120752,1718122247101,-500.0,0.00021917,2]
[329120753,1718122247113,-500.0,0.00021917,2]
[329120754,1718122247124,-500.0,0.00021917,2]
[329120755,1718122247135,-4981.94,0.00021917,2]
[329120756,1718122247147,-1454.9,0.00021917,2]
[329120757,1718122247160,-500.0,0.00021917,2]
[329120758,1718122247171,-500.0,0.00021917,2]
[329120759,1718122247182,-500.0,0.00021917,2]
[329120760,1718122247193,-1106.42,0.00021917,2]
[329120761,1718122247215,-549.53187097,0.00021917,2]
[329120762,1718122247226,-1293.85,0.00021917,2]
[329120763,1718122247238,-506.03,0.00021917,2]
[329120764,1718122247249,-4344.7,0.00021917,2]
[329120765,1718122247260,-2957.01,0.00021917,2]
[329120766,1718122247271,-500.0,0.00021917,2]
[329120767,1718122247282,-2285.64,0.00021917,2]
[329120768,1718122247292,-718.32,0.00021917,2]
[329120769,1718122247304,-500.0,0.00021917,2]
[329120770,1718122247316,-2435.39,0.00021917,2]
[329120771,1718122247326,-500.0,0.00021917,2]
[329120772,1718122247338,-8153.02,0.00021917,2]
[329120773,1718122247350,-21012.37,0.00021917,2]
[329120774,1718122247361,-500.0,0.00021917,2]
[329120775,1718122247372,-1801.36,0.00021917,2]
[329120776,1718122247383,-500.0,0.00021917,2]
[329120777,1718122247393,-500.0,0.00021917,2]
[329120778,1718122247404,-500.0,0.00021917,2]
[329120779,1718122247415,-1481.2,0.00021917,2]
[329120780,1718122247425,-309.93720992,0.00021917,2]
[329120781,1718122247436,-500.0,0.00021917,2]
[329120782,1718122247446,-510.19999611,0.00021917,2]
[329120783,1718122247457,-2015.55,0.00021917,2]
[329120784,1718122247468,-803.24,0.00021917,2]
[329120785,1718122247478,-500.0,0.00021917,2]
[329120786,1718122247489,-1188.64,0.00021917,2]
[329120787,1718122247500,-500.0,0.00021917,2]
[329120788,1718122247511,-2334.12,0.00021917,2]
[329120789,1718122247522,-337.17534713,0.00021917,2]
[329120790,1718122247533,-6340.01,0.00021917,2]
[329120791,1718122247544,-1582.01,0.00021917,2]
[329120792,1718122247555,-3987.5,0.00021917,2]
[329120793,1718122247566,-597.92,0.00021917,2]
[329120794,1718122247577,-513.89,0.00021917,2]
[329120795,1718122247588,-1827.13,0.00021917,2]
[329120796,1718122247601,-500.0,0.00021917,2]
[329120797,1718122247616,-250.11621687,0.00021917,2]
[329120798,1718122247628,-431.23896839,0.00021917,2]
[329120799,1718122247639,-1356.66,0.00021917,2]
[329120800,1718122247650,-572.78564564,0.00021917,2]
[329120801,1718122247661,-500.0,0.00021917,2]
[329120802,1718122247673,-2011.16,0.00021917,2]
[329120803,1718122247686,-500.0,0.00021917,2]
[329120804,1718122247697,-764.56,0.00021917,2]
[329120805,1718122247708,-1189.43,0.00021917,2]
[329120806,1718122247720,-1085.01,0.00021917,2]
[329120807,1718122247731,-3001.15,0.00021917,2]
[329120808,1718122247743,-2265.23,0.00021917,2]
[329120809,1718122247755,-1474.81,0.00021917,2]
[329120810,1718122247766,-727.28,0.00021917,2]
[329120811,1718122247778,-764.23,0.00021917,2]
[329120812,1718122247789,-2479.76,0.00021917,2]
[329120813,1718122247800,-3191.97,0.00021917,2]
[329120814,1718122247811,-2985.74,0.00021917,2]
[329120815,1718122247823,-500.0,0.00021917,2]
[329120816,1718122247835,-513.24736654,0.00021917,2]
[329120817,1718122247847,-2057.43,0.00021917,2]
[329120818,1718122247858,-500.0,0.00021917,2]
[329120819,1718122247870,-757.83,0.00021917,2]
[329120820,1718122247881,-500.0,0.00021917,2]
[329120821,1718122247893,-1071.43,0.00021917,2]
[329120822,1718122247904,-500.0,0.00021917,2]
[329120823,1718122247916,-500.0,0.00021917,2]
[329120824,1718122247927,-500.0,0.00021917,2]
[329120825,1718122247939,-1655.74,0.00021917,2]
[329120826,1718122247950,-500.0,0.00021917,2]
[329120827,1718122247962,-500.0,0.00021917,2]
[329120828,1718122247973,-522.18,0.00021917,2]
[329120829,1718122247984,-4435.43,0.00021917,2]
[329120830,1718122247996,-500.0,0.00021917,2]
[329120831,1718122248007,-4996.05,0.00021917,2]
[329120832,1718122248017,-3922.22,0.00021917,2]
[329120833,1718122248028,-500.0,0.00021917,2]
[329120834,1718122248040,-1161.17,0.00021917,2]
[329120835,1718122248052,-500.0,0.00021917,2]
[329120836,1718122248063,-500.0,0.00021917,2]
[329120837,1718122248074,-2961.89,0.00021917,2]
[329120838,1718122248085,-1974.48,0.00021917,2]
[329120839,1718122248096,-1657.74,0.00021917,2]
[329120840,1718122248106,-631.65,0.00021917,2]
[329120841,1718122248117,-500.0,0.00021917,2]
[329120842,1718122248128,-1765.87,0.00021917,2]
[329120843,1718122248139,-1254.52,0.00021917,2]
[329120844,1718122248151,-518.22,0.00021917,2]
[329120845,1718122248162,-500.0,0.00021917,2]
[329120846,1718122248174,-1970.29,0.00021917,2]
[329120847,1718122248185,-1060.18,0.00021917,2]
[329120848,1718122248195,-500.0,0.00021917,2]
[329120849,1718122248221,-1316.65,0.00021917,2]
[329120850,1718122248232,-1912.51,0.00021917,2]
[329120851,1718122248243,-2706.37,0.00021917,2]
[329120852,1718122248254,-586.29,0.00021917,2]
[329120853,1718122248265,-3316.52,0.00021917,2]
[329120854,1718122248277,-917.43,0.00021917,2]
[329120855,1718122248288,-500.0,0.00021917,2]
[329120856,1718122248300,-1956.8,0.00021917,2]
[329120857,1718122248312,-500.0,0.00021917,2]
[329120858,1718122248324,-197.35742139,0.00021917,2]
[329120859,1718122248338,-500.0,0.00021917,2]
[329120860,1718122248349,-4122.23,0.00021917,2]
[329120861,1718122248360,-500.0,0.00021917,2]
[329120862,1718122248374,-697.81,0.00021917,2]
[329120863,1718122248386,-508.87563942,0.00021917,2]
[329120864,1718122248398,-3647.35,0.00021917,2]
[329120865,1718122248410,-545.10427197,0.00021917,2]
[329120866,1718122248421,-522.61059398,0.00021917,2]
[329120867,1718122248433,-1328.71,0.00021917,2]
[329120868,1718122248444,-753.5,0.00021917,2]
[329120869,1718122248457,-553.33,0.00021917,2]
[329120870,1718122248469,-683.61,0.00021917,2]
[329120871,1718122248480,-500.0,0.00021917,2]
[329120872,1718122248491,-1817.02,0.00021917,2]
[329120873,1718122248502,-500.0,0.00021917,2]
[329120874,1718122248513,-2916.39,0.00021917,2]
[329120875,1718122248525,-500.0,0.00021917,2]
[329120876,1718122248536,-500.0,0.00021917,2]
[329120877,1718122248547,-7009.76,0.00021917,2]
[329120878,1718122248558,-877.26,0.00021917,2]
[329120879,1718122248569,-500.0,0.00021917,2]
[329120880,1718122248580,-500.0,0.00021917,2]
[329120881,1718122248591,-3865.15,0.00021917,2]
[329120882,1718122248609,-4307.6,0.00021917,2]
[329120883,1718122248620,-1283.08,0.00021917,2]
[329120884,1718122248633,-1016.28,0.00021917,2]
[329120885,1718122248646,-5401.05,0.00021917,2]
[329120886,1718122248657,-968.24,0.00021917,2]
[329120887,1718122248668,-500.0,0.00021917,2]
[329120888,1718122248679,-3066.13,0.00021917,2]
[329120889,1718122248690,-500.0,0.00021917,2]
[329120890,1718122248700,-3473.08,0.00021917,2]
[329120891,1718122248711,-500.0,0.00021917,2]
[329120892,1718122248722,-500.0,0.00021917,2]
[329120893,1718122248733,-500.0,0.00021917,2]
[329120894,1718122248744,-1117.34,0.00021917,2]
[329120895,1718122248755,-934.42,0.00021917,2]
[329120896,1718122248766,-821.81,0.00021917,2]
[329120897,1718122248777,-4804.45,0.00021917,2]
[329120898,1718122248788,-1272.06,0.00021917,2]
[329120899,1718122248799,-519.53,0.00021917,2]
[329120900,1718122248810,-500.0,0.00021917,2]
[329120901,1718122248821,-519.14352864,0.00021917,2]
[329120902,1718122248832,-4589.62,0.00021917,2]
[329120903,1718122248843,-1449.42,0.00021917,2]
[329120904,1718122248854,-611.1,0.00021917,2]
[329120905,1718122248865,-1395.8,0.00021917,2]
[329120906,1718122248876,-14846.55,0.00021917,2]
[329120907,1718122248886,-500.0,0.00021917,2]
[329120908,1718122248897,-500.0,0.00021917,2]
[329120909,1718122248908,-500.0,0.00021917,2]
[329120910,1718122248920,-465.03,0.00021918,2]
[329120912,1718122248931,-250.0,0.00021918,2]
[329120914,1718122248941,-1738.77189331,0.00021954,2]
[329120916,1718122248951,-381.76420571,0.00021981,2]
[329120917,1718122248962,-1230.18688,0.00022,2]
[329120918,1718122248973,-789.68098133,0.00022,2]
[329120919,1718122248984,-1535.52627223,0.00022,2]
[329120920,1718122249764,-1522.57163168,0.00022,2]
[329120921,1718122249780,-113.32834029,0.00022,2]
[329120922,1718122249790,-1000.0,0.00022036,2]
[329120923,1718122249801,-333.86740679,0.00022044,2]
[329120924,1718122249811,-150.0,0.00022053,10]
[329120925,1718122249822,-500.0,0.00022054,2]
[329120926,1718122249832,-496.44042861,0.00022054,2]
[329120927,1718122249850,-340.82957139,0.00022054,2]
[329120928,1718122249861,-500.0,0.00022054,2]
[329120929,1718122249872,-500.0,0.00022054,2]
[329120930,1718122249888,-500.0,0.00022054,2]
[329120931,1718122249898,-500.0,0.00022054,2]
[329120932,1718122249909,-500.0,0.00022054,2]
[329120933,1718122249919,-500.0,0.00022054,2]
[329120934,1718122249930,-500.0,0.00022054,2]
[329120935,1718122249941,-500.0,0.00022054,2]
[329120936,1718122249952,-715.14,0.00022054,2]
[329120937,1718122249963,-500.0,0.00022054,2]
[329120938,1718122249973,-752.38,0.00022054,2]
[329120939,1718122249984,-500.0,0.00022054,2]
[329120940,1718122249994,-500.0,0.00022054,2]
[329120941,1718122250005,-657.43,0.00022054,2]
[329120942,1718122250016,-500.0,0.00022054,2]
[329120943,1718122250029,-500.0,0.00022054,2]
[329120944,1718122250039,-500.0,0.00022054,2]
[329120945,1718122250049,-500.0,0.00022054,2]
[329120946,1718122250059,-500.0,0.00022054,2]
[329120947,1718122250070,-780.27,0.00022054,2]
[329120948,1718122250081,-500.0,0.00022054,2]
[329120949,1718122250090,-500.0,0.00022054,2]
[329120950,1718122250100,-500.0,0.00022054,2]
[329120951,1718122250111,-586.54896521,0.00022054,2]
[329120952,1718122250122,-500.0,0.00022054,2]
[329120953,1718122250132,-500.0,0.00022054,2]
[329120954,1718122250144,-500.0,0.00022054,2]
[329120955,1718122250154,-704.45,0.00022054,2]
[329120956,1718122250166,-168.63666095,0.00022054,2]
[329120957,1718122250177,-500.0,0.00022054,2]
[329120958,1718122250188,-500.0,0.00022054,2]
[329120959,1718122250200,-500.0,0.00022054,2]
[329120960,1718122250215,-913.75,0.00022054,2]
[329120961,1718122250226,-506.19,0.00022054,2]
[329120962,1718122250237,-500.0,0.00022054,2]
[329120963,1718122250249,-500.0,0.00022054,2]
[329120964,1718122250259,-501.08,0.00022054,2]
[329120965,1718122250270,-746.24,0.00022054,2]
[329120966,1718122250281,-500.0,0.00022054,2]
[329120967,1718122250291,-510.0,0.00022054,2]
[329120968,1718122250301,-500.0,0.00022054,2]
[329120969,1718122250311,-500.0,0.00022054,2]
[329120970,1718122250321,-500.0,0.00022054,2]
[329120971,1718122250331,-500.0,0.00022054,2]
[329120972,1718122250342,-500.0,0.00022054,2]
[329120973,1718122250352,-500.0,0.00022054,2]
[329120974,1718122250363,-500.0,0.00022054,2]
[329120975,1718122250374,-218.73306358,0.00022054,2]
[329120976,1718122250385,-500.0,0.00022054,2]
[329120977,1718122250395,-160.87079334,0.00022054,2]
[329120978,1718122250406,-500.0,0.00022054,2]
[329120979,1718122250416,-523.91739105,0.00022054,2]
[329120980,1718122250427,-500.0,0.00022054,2]
[329120981,1718122250438,-590.68,0.00022054,2]
[329120982,1718122250449,-500.0,0.00022054,2]
[329120983,1718122250461,-500.0,0.00022054,2]
[329120984,1718122250471,-500.0,0.00022054,2]
[329120985,1718122250484,-500.0,0.00022054,2]
[329120986,1718122250495,-500.0,0.00022054,2]
[329120987,1718122250506,-500.0,0.00022054,2]
[329120988,1718122250516,-500.0,0.00022054,2]
[329120989,1718122250527,-500.0,0.00022054,2]
[329120990,1718122250538,-500.0,0.00022054,2]
[329120991,1718122250548,-500.0,0.00022054,2]
[329120992,1718122250559,-720.1,0.00022054,2]
[329120993,1718122250570,-500.0,0.00022054,2]
[329120994,1718122250580,-500.0,0.00022054,2]
[329120995,1718122250591,-500.0,0.00022054,2]
[329120996,1718122250606,-521.09972603,0.00022054,2]
[329120997,1718122250617,-527.07001103,0.00022054,2]
[329120998,1718122250627,-638.49995445,0.00022054,2]
[329120999,1718122250639,-500.0,0.00022054,2]
[329121000,1718122250650,-500.0,0.00022054,2]
[329121001,1718122250661,-631.31,0.00022054,2]
[329121002,1718122250671,-500.0,0.00022054,2]
[329121003,1718122250685,-500.0,0.00022054,2]
[329121004,1718122250697,-500.0,0.00022054,2]
[329121005,1718122250707,-500.0,0.00022054,2]
[329121006,1718122250717,-500.0,0.00022054,2]
[329121007,1718122250728,-622.95518701,0.00022054,2]
[329121008,1718122250739,-500.0,0.00022054,2]
[329121009,1718122250750,-737.57,0.00022054,2]
[329121010,1718122250760,-500.0,0.00022054,2]
[329121011,1718122250770,-500.0,0.00022054,2]